[Event "10th Iberoamericano-ch 2024"]
[Site "Linares"]
[Date "2024.09.27"]
[Round "5.17"]
[White "Matamoros Franco, Carlos S."]
[Black "Escalona Landi, Samid Eduardo"]
[Result "1-0"]
[ECO "A05"]
[WhiteElo "2404"]
[BlackElo "2305"]
[Annotator "ChessBase"]
[PlyCount "44"]
[EventDate "2024.09.25"]
[EventType "swiss"]
[EventCountry "ESP"]
[SourceTitle "playchess.com"]
[Source "ChessBase"]
[SourceQuality "1"]
[TimeControl "5400+30"]

1. Nf3 {[%emt 0:00:04]} Nf6 {[%emt 0:10:03]} 2. g3 {[%emt 0:00:17]} b6 {[%emt 0:00:08]} 3. Bg2 {[%emt 0:00:15]} Bb7 {[%emt 0:00:05]} 4. d3 {[%emt 0:02:07]} g6 {[%emt 0:00:37]} 5. e4 {[%emt 0:04:01]} d6 {[%emt 0:00:07]} 6. O-O {[%emt 0:00:07]} Bg7 {[%emt 0:00:04]} 7. Nfd2 {[%emt 0:08:04]} e5 {[%emt 0:00:05]} 8. a4 {[%emt 0:04:44]} a6 {[%emt 0:00:18]} 9. d4 {[%emt 0:08:58]} Nbd7 {[%emt 0:03:51]} 10. Re1 {[%emt 0:06:47]} O-O {[%emt 0:00:14]} 11. d5 {[%emt 0:01:20]} Bh6 {[%emt 0:00:09]} 12. Nc3 {[%emt 0:02:38]} Qe7 {[%emt 0:01:42]} 13. Nc4 {[%emt 0:00:18]} Bxc1 {[%emt 0:00:06]} 14. Qxc1 {[%emt 0:00:07]} Kg7 {[%emt 0:01:16]} 15. Qd2 {[%emt 0:01:45]} h5 {[%emt 0:02:04]} 16. h4 {[%emt 0:05:33]} Ng4 {[%emt 0:00:06]} 17. Bh3 {[%emt 0:00:31]} Ndf6 {[%emt 0:02:29]} 18. Qg5 {[%emt 0:01:16]} Qe8 {[%emt 0:01:56]} 19. Qd2 {[%emt 0:01:48]} Qe7 {[%emt 0:00:14]} 20. Qg5 {[%emt 0:00:12]} Qe8 {[%emt 0:00:07]} 21. Qd2 {[%emt 0:00:21]} Qe7 {[%emt 0:00:06]} 22. a5 b5 1-0

[Event "10th Iberoamericano-ch 2024"]
[Site "Linares"]
[Date "2024.09.27"]
[Round "5.18"]
[White "Gavarrete, Joel"]
[Black "Veiga, Jose Francisco R P N"]
[Result "0-1"]
[ECO "A05"]
[WhiteElo "2059"]
[BlackElo "2404"]
[Annotator "ChessBase"]
[PlyCount "48"]
[EventDate "2024.09.25"]
[EventType "swiss"]
[EventCountry "ESP"]
[SourceTitle "playchess.com"]
[Source "ChessBase"]
[SourceQuality "1"]
[TimeControl "5400+30"]

1. Nf3 {[%emt 0:00:03]} Nf6 {[%emt 0:04:49]} 2. b3 {[%emt 0:00:11]} g6 {[%emt 0:00:13]} 3. Bb2 {[%emt 0:00:06]} Bg7 {[%emt 0:00:05]} 4. g3 {[%emt 0:01:10]} O-O {[%emt 0:00:11]} 5. Bg2 {[%emt 0:00:06]} c5 {[%emt 0:00:33]} 6. c4 {[%emt 0:03:26]} d6 {[%emt 0:01:10]} 7. O-O {[%emt 0:00:22]} e5 {[%emt 0:00:15]} 8. d3 {[%emt 0:00:31]} Nc6 {[%emt 0:01:56]} 9. Nc3 {[%emt 0:03:31]} h6 {[%emt 0:01:20]} 10. Nd5 {[%emt 0:10:44]} Nxd5 {[%emt 0:01:45]} 11. cxd5 {[%emt 0:00:03]} Ne7 {[%emt 0:00:08]} 12. e4 {[%emt 0:01:56]} f5 {[%emt 0:01:05]} 13. Nd2 {[%emt 0:02:08]} f4 {[%emt 0:01:11]} 14. f3 {[%emt 0:06:35]} fxg3 {[%emt 0:03:04]} 15. hxg3 {[%emt 0:00:04]} g5 {[%emt 0:00:32]} 16. g4 {[%emt 0:04:54]} Ng6 {[%emt 0:01:26]} 17. a4 {[%emt 0:05:20]} Nf4 {[%emt 0:00:56]} 18. Nc4 {[%emt 0:00:20]} h5 {[%emt 0:01:15]} 19. gxh5 {[%emt 0:00:47]} g4 {[%emt 0:03:36]} 20. fxg4 {[%emt 0:02:54]} Qh4 {[%emt 0:00:33]} 21. Ne3 {[%emt 0:04:02]} Qg3 {[%emt 0:04:49]} 22. Rf3 {[%emt 0:02:02]} Nh3+ {[%emt 0:00:29]} 23. Kf1 {[%emt 0:00:20]} Bxg4 {[%emt 0:02:38]} 24. Nxg4 {[%emt 0:06:24]} Rxf3+ {[%emt 0:03:26]} 0-1

[Event "10th Iberoamericano-ch 2024"]
[Site "Linares"]
[Date "2024.09.27"]
[Round "5.19"]
[White "Fernandez Sanchez, Fernando Miguel"]
[Black "Romero Calduch, Sergio"]
[Result "0-1"]
[ECO "A13"]
[WhiteElo "2399"]
[BlackElo "2276"]
[Annotator "ChessBase"]
[PlyCount "78"]
[EventDate "2024.09.25"]
[EventType "swiss"]
[EventCountry "ESP"]
[SourceTitle "playchess.com"]
[Source "ChessBase"]
[SourceQuality "1"]
[TimeControl "5400+30"]

1. c4 {[%emt 0:06:13]} Nf6 {[%emt 0:00:16]} 2. g3 {[%emt 0:00:07]} e6 {[%emt 0:00:09]} 3. Bg2 {[%emt 0:00:06]} d5 {[%emt 0:00:06]} 4. Nf3 {[%emt 0:00:08]} dxc4 {[%emt 0:00:10]} 5. Qa4+ {[%emt 0:00:12]} Bd7 {[%emt 0:00:12]} 6. Qxc4 {[%emt 0:00:06]} c5 {[%emt 0:00:13]} 7. Ne5 {[%emt 0:00:17]} Qc8 {[%emt 0:00:12]} 8. O-O {[%emt 0:01:11]} Nc6 {[%emt 0:00:13]} 9. Nxd7 {[%emt 0:00:09]} Qxd7 {[%emt 0:00:26]} 10. Nc3 {[%emt 0:01:02]} Rc8 {[%emt 0:02:27]} 11. Qa4 {[%emt 0:00:10]} b6 {[%emt 0:04:07]} 12. d3 {[%emt 0:00:10]} Be7 {[%emt 0:01:52]} 13. Bd2 {[%emt 0:00:13]} O-O {[%emt 0:00:25]} 14. Rfc1 {[%emt 0:00:24]} Rfd8 {[%emt 0:01:00]} 15. Rab1 {[%emt 0:02:36]} h6 {[%emt 0:00:42]} 16. Kf1 {[%emt 0:00:46]} Ne8 {[%emt 0:04:40]} 17. a3 {[%emt 0:01:28]} Na5 {[%emt 0:23:32]} 18. Be1 {[%emt 0:43:17]} Qxa4 {[%emt 0:07:49]} 19. Nxa4 {[%emt 0:00:03]} Nb3 {[%emt 0:00:41]} 20. Rc3 {[%emt 0:09:11]} Nd4 {[%emt 0:01:04]} 21. e3 {[%emt 0:00:49]} Nb5 {[%emt 0:02:05]} 22. Rb3 {[%emt 0:01:22]} Nbd6 {[%emt 0:00:28]} 23. Rc1 {[%emt 0:05:23]} Bf6 {[%emt 0:06:02]} 24. Ke2 {[%emt 0:02:26]} c4 25. dxc4 {[%emt 0:00:13]} Nxc4 {[%emt 0:19:14]} 26. Nc3 {[%emt 0:21:20]} Ned6 {[%emt 0:03:53]} 27. Rd1 {[%emt 0:00:06]} Na5 {[%emt 0:03:39]} 28. Rb4 {[%emt 0:00:11]} Ndc4 {[%emt 0:02:27]} 29. Rxd8+ {[%emt 0:03:30]} Rxd8 {[%emt 0:00:08]} 30. Be4 {[%emt 0:01:34]} Be7 {[%emt 0:04:45]} 31. Ra4 {[%emt 0:00:03]} Nxb2 {[%emt 0:04:13]} 32. Rd4 {[%emt 0:00:03]} Rxd4 {[%emt 0:00:31]} 33. exd4 {[%emt 0:00:02]} a6 {[%emt 0:00:42]} 34. Nb1 {[%emt 0:01:04]} Nac4 {[%emt 0:05:02]} 35. Bc3 {[%emt 0:00:57]} Na4 {[%emt 0:00:31]} 36. Bb4 {[%emt 0:00:12]} Bxb4 {[%emt 0:02:49]} 37. axb4 {[%emt 0:00:02]} Nd6 {[%emt 0:00:35]} 38. Bc6 {[%emt 0:01:32]} b5 {[%emt 0:01:34]} 39. Nd2 {[%emt 0:00:14]} Nc3+ {[%emt 0:00:23]} 0-1

[Event "10th Iberoamericano-ch 2024"]
[Site "Linares"]
[Date "2024.09.27"]
[Round "5.20"]
[White "Labiano Hernandez, Juan"]
[Black "Noboa Silva, Kevin"]
[Result "1/2-1/2"]
[ECO "C10"]
[WhiteElo "2398"]
[BlackElo "2270"]
[Annotator "ChessBase"]
[PlyCount "110"]
[EventDate "2024.09.25"]
[EventType "swiss"]
[EventCountry "ESP"]
[SourceTitle "playchess.com"]
[Source "ChessBase"]
[SourceQuality "1"]
[TimeControl "5400+30"]

1. e4 {[%emt 0:00:03]} e6 {[%emt 0:01:08]} 2. d4 {[%emt 0:00:07]} d5 {[%emt 0:00:06]} 3. Nc3 {[%emt 0:00:04]} dxe4 {[%emt 0:00:08]} 4. Nxe4 {[%emt 0:00:08]} Nd7 {[%emt 0:00:04]} 5. Bd3 {[%emt 0:03:01]} Ngf6 {[%emt 0:00:17]} 6. Qe2 {[%emt 0:00:15]} c5 {[%emt 0:00:50]} 7. Nxf6+ {[%emt 0:03:35]} Nxf6 {[%emt 0:00:44]} 8. dxc5 {[%emt 0:02:02]} Bxc5 {[%emt 0:00:43]} 9. Nf3 {[%emt 0:01:36]} O-O {[%emt 0:01:00]} 10. Bg5 {[%emt 0:04:56]} Qa5+ {[%emt 0:02:49]} 11. c3 {[%emt 0:02:39]} Be7 {[%emt 0:00:52]} 12. O-O {[%emt 0:11:43]} Rd8 {[%emt 0:06:19]} 13. Ne5 {[%emt 0:04:50]} Qc7 {[%emt 0:19:49]} 14. Rad1 {[%emt 0:04:43]} h6 {[%emt 0:02:34]} 15. Bf4 {[%emt 0:04:02]} Bd6 {[%emt 0:00:46]} 16. Bg3 {[%emt 0:06:37]} b6 {[%emt 0:05:49]} 17. Bc4 {[%emt 0:13:43]} Nd5 {[%emt 0:04:07]} 18. Bxd5 {[%emt 0:10:47]} exd5 {[%emt 0:00:16]} 19. Rfe1 {[%emt 0:03:45]} Be6 {[%emt 0:04:14]} 20. Nf3 {[%emt 0:02:35]} Bxg3 {[%emt 0:04:58]} 21. hxg3 {[%emt 0:00:02]} d4 {[%emt 0:02:42]} 22. Rxd4 {[%emt 0:03:20]} Bxa2 {[%emt 0:01:37]} 23. Qe7 {[%emt 0:00:38]} Qxe7 {[%emt 0:01:46]} 24. Rxe7 {[%emt 0:00:03]} Bd5 {[%emt 0:04:16]} 25. Ne5 {[%emt 0:00:42]} a5 {[%emt 0:01:23]} 26. Rd7 {[%emt 0:03:05]} Rxd7 {[%emt 0:01:35]} 27. Nxd7 {[%emt 0:00:01]} Be6 {[%emt 0:01:30]} 28. Nxb6 {[%emt 0:00:07]} Rb8 {[%emt 0:00:08]} 29. Rd6 {[%emt 0:04:36]} Rb7 {[%emt 0:01:44]} 30. Kf1 {[%emt 0:03:44]} Kf8 {[%emt 0:01:37]} 31. Ke2 {[%emt 0:00:20]} Ke7 {[%emt 0:00:48]} 32. Rc6 {[%emt 0:00:06]} Bd7 {[%emt 0:01:06]} 33. Nd5+ {[%emt 0:00:06]} Kd8 {[%emt 0:02:01]} 34. Rb6 {[%emt 0:00:06]} Bb5+ {[%emt 0:00:41]} 35. Ke3 {[%emt 0:01:01]} Rxb6 {[%emt 0:00:23]} 36. Nxb6 {[%emt 0:00:01]} Bf1 {[%emt 0:00:16]} 37. f3 {[%emt 0:01:38]} Kc7 {[%emt 0:01:35]} 38. Nd5+ {[%emt 0:03:50]} Kd6 {[%emt 0:00:45]} 39. Nf4 {[%emt 0:00:40]} g5 {[%emt 0:02:50]} 40. Ne2 {[%emt 0:01:17]} Bxg2 {[%emt 0:00:59]} 41. g4 {[%emt 0:00:26]} f5 {[%emt 0:02:35]} 42. gxf5 {[%emt 0:01:05]} Ke5 {[%emt 0:00:30]} 43. Ng3 {[%emt 0:00:45]} Bh3 {[%emt 0:00:40]} 44. f6 {[%emt 0:01:29]} Kxf6 {[%emt 0:00:06]} 45. f4 {[%emt 0:00:35]} Be6 {[%emt 0:00:42]} 46. Ne4+ {[%emt 0:00:25]} Kf5 {[%emt 0:02:31]} 47. fxg5 {[%emt 0:00:07]} hxg5 {[%emt 0:01:21]} 48. Nc5 {[%emt 0:00:15]} Bd5 {[%emt 0:00:23]} 49. b4 {[%emt 0:00:27]} axb4 {[%emt 0:00:19]} 50. cxb4 {[%emt 0:00:02]} g4 {[%emt 0:00:25]} 51. Kf2 {[%emt 0:00:10]} Kf4 {[%emt 0:00:23]} 52. Nd3+ {[%emt 0:00:07]} Ke4 {[%emt 0:00:16]} 53. Kg3 {[%emt 0:00:17]} Kxd3 {[%emt 0:00:14]} 54. Kxg4 {[%emt 0:00:03]} Kc4 {[%emt 0:00:06]} 55. b5 {[%emt 0:00:13]} Kxb5 1/2-1/2

[Event "10th Iberoamericano-ch 2024"]
[Site "Linares"]
[Date "2024.09.27"]
[Round "5.21"]
[White "Rodriguez Lopez, Rafael"]
[Black "Vega Gutierrez, Sabrina"]
[Result "1/2-1/2"]
[ECO "B36"]
[WhiteElo "2162"]
[BlackElo "2374"]
[Annotator "ChessBase"]
[PlyCount "77"]
[EventDate "2024.09.25"]
[EventType "swiss"]
[EventCountry "ESP"]
[SourceTitle "playchess.com"]
[Source "ChessBase"]
[SourceQuality "1"]
[TimeControl "5400+30"]

1. Nf3 {[%emt 0:00:05]} c5 {[%emt 0:02:43]} 2. c4 {[%emt 0:00:12]} g6 {[%emt 0:01:09]} 3. e4 {[%emt 0:00:15]} Nc6 {[%emt 0:00:34]} 4. d4 {[%emt 0:00:06]} cxd4 {[%emt 0:00:07]} 5. Nxd4 {[%emt 0:00:05]} Nf6 {[%emt 0:00:17]} 6. Nc3 {[%emt 0:00:16]} d6 {[%emt 0:00:12]} 7. Nc2 {[%emt 0:01:21]} Bg7 {[%emt 0:00:45]} 8. Be2 {[%emt 0:00:19]} O-O {[%emt 0:02:34]} 9. O-O {[%emt 0:00:05]} a6 {[%emt 0:07:10]} 10. f3 {[%emt 0:00:48]} Rb8 {[%emt 0:11:30]} 11. Kh1 {[%emt 0:00:48]} Nd7 {[%emt 0:03:39]} 12. Bd2 {[%emt 0:18:26]} Nc5 {[%emt 0:05:34]} 13. b4 {[%emt 0:01:26]} Ne6 {[%emt 0:01:23]} 14. Rb1 {[%emt 0:01:24]} Ncd4 {[%emt 0:08:29]} 15. Nxd4 {[%emt 0:06:48]} Nxd4 {[%emt 0:00:32]} 16. Bd3 {[%emt 0:00:09]} Be6 {[%emt 0:03:10]} 17. Nd5 {[%emt 0:00:54]} b5 {[%emt 0:06:07]} 18. Bg5 {[%emt 0:02:21]} Re8 {[%emt 0:00:53]} 19. f4 {[%emt 0:03:36]} Bxd5 {[%emt 0:07:15]} 20. cxd5 {[%emt 0:02:18]} Rc8 {[%emt 0:00:38]} 21. Qd2 {[%emt 0:01:23]} h6 {[%emt 0:11:19]} 22. Bh4 {[%emt 0:00:21]} Qd7 {[%emt 0:03:16]} 23. Bf2 {[%emt 0:01:52]} e6 {[%emt 0:05:32]} 24. dxe6 {[%emt 0:07:37]} Qxe6 {[%emt 0:00:31]} 25. Rbc1 {[%emt 0:06:05]} Rxc1 {[%emt 0:01:08]} 26. Rxc1 {[%emt 0:00:11]} Rc8 {[%emt 0:00:20]} 27. Rxc8+ {[%emt 0:11:44]} Qxc8 {[%emt 0:00:02]} 28. h3 {[%emt 0:04:59]} Qc6 {[%emt 0:03:34]} 29. f5 {[%emt 0:00:30]} gxf5 {[%emt 0:00:30]} 30. exf5 {[%emt 0:00:33]} Qd5 {[%emt 0:00:27]} 31. f6 {[%emt 0:01:16]} Bxf6 {[%emt 0:00:11]} 32. Qxh6 {[%emt 0:00:57]} Nf5 {[%emt 0:08:51]} 33. Qxf6 {[%emt 0:00:30]} Qxd3 {[%emt 0:00:05]} 34. Qg5+ {[%emt 0:02:04]} Kh7 {[%emt 0:01:56]} 35. Kh2 {[%emt 0:03:27]} Qe4 {[%emt 0:01:15]} 36. Qh5+ {[%emt 0:04:52]} Kg7 {[%emt 0:02:27]} 37. Qg5+ {[%emt 0:00:41]} Kh7 {[%emt 0:00:11]} 38. Qh5+ {[%emt 0:00:57]} Kg7 {[%emt 0:00:15]} 39. Qg5+ {[%emt 0:00:14]} 1/2-1/2

[Event "10th Iberoamericano-ch 2024"]
[Site "Linares"]
[Date "2024.09.27"]
[Round "5.22"]
[White "Panelo, Marcelo"]
[Black "Masague Artero, Guerau"]
[Result "1/2-1/2"]
[ECO "A07"]
[WhiteElo "2364"]
[BlackElo "2251"]
[Annotator "ChessBase"]
[PlyCount "122"]
[EventDate "2024.09.25"]
[EventType "swiss"]
[EventCountry "ESP"]
[SourceTitle "playchess.com"]
[Source "ChessBase"]
[SourceQuality "1"]
[TimeControl "5400+30"]

1. Nf3 {[%emt 0:02:20]} d5 {[%emt 0:00:13]} 2. g3 {[%emt 0:00:21]} b6 {[%emt 0:00:23]} 3. Bg2 {[%emt 0:00:47]} Bb7 {[%emt 0:00:06]} 4. O-O {[%emt 0:01:54]} Nf6 {[%emt 0:00:07]} 5. d3 {[%emt 0:01:23]} e6 {[%emt 0:02:20]} 6. a4 {[%emt 0:08:25]} c5 {[%emt 0:20:22]} 7. e4 {[%emt 0:05:40]} Nc6 {[%emt 0:07:27]} 8. Nbd2 {[%emt 0:02:03]} Be7 {[%emt 0:00:24]} 9. Re1 {[%emt 0:00:37]} h6 {[%emt 0:04:26]} 10. c3 {[%emt 0:14:44]} O-O {[%emt 0:01:47]} 11. e5 {[%emt 0:00:50]} Nh7 {[%emt 0:00:28]} 12. h4 {[%emt 0:00:58]} Qd7 {[%emt 0:09:09]} 13. Nf1 {[%emt 0:07:52]} Rfc8 {[%emt 0:05:11]} 14. g4 {[%emt 0:05:59]} Qd8 {[%emt 0:00:44]} 15. g5 {[%emt 0:07:17]} hxg5 {[%emt 0:01:37]} 16. Nxg5 {[%emt 0:00:07]} Nxg5 {[%emt 0:00:19]} 17. hxg5 {[%emt 0:00:07]} Bxg5 {[%emt 0:00:54]} 18. Qg4 {[%emt 0:07:14]} Bxc1 {[%emt 0:02:38]} 19. Raxc1 {[%emt 0:00:05]} Ne7 {[%emt 0:00:07]} 20. Re3 {[%emt 0:01:20]} Ng6 {[%emt 0:04:35]} 21. Rh3 {[%emt 0:04:08]} Nxe5 {[%emt 0:06:45]} 22. Qh5 {[%emt 0:00:43]} Ng6 {[%emt 0:00:07]} 23. Re1 {[%emt 0:00:39]} Kf8 {[%emt 0:06:54]} 24. Rf3 {[%emt 0:11:15]} d4 {[%emt 0:13:18]} 25. Rxf7+ {[%emt 0:03:35]} Kxf7 {[%emt 0:00:07]} 26. Bxb7 {[%emt 0:00:04]} Qf6 {[%emt 0:00:23]} 27. Bxa8 {[%emt 0:02:57]} Rxa8 {[%emt 0:00:07]} 28. Qh1 {[%emt 0:00:03]} Rf8 {[%emt 0:07:20]} 29. cxd4 {[%emt 0:02:40]} Kg8 {[%emt 0:00:42]} 30. Qh2 {[%emt 0:01:38]} Nh4 {[%emt 0:00:20]} 31. Nd2 {[%emt 0:00:19]} Qg5+ {[%emt 0:00:05]} 32. Kf1 {[%emt 0:00:40]} Qxd2 {[%emt 0:01:07]} 33. Qxh4 {[%emt 0:00:07]} Qxd3+ {[%emt 0:00:03]} 34. Re2 {[%emt 0:01:31]} cxd4 {[%emt 0:01:21]} 35. Qe4 {[%emt 0:00:05]} Qh3+ {[%emt 0:00:31]} 36. Ke1 {[%emt 0:00:05]} Re8 {[%emt 0:05:10]} 37. Qxd4 {[%emt 0:00:21]} Qh1+ {[%emt 0:00:00]} 38. Kd2 {[%emt 0:00:10]} Rc8 {[%emt 0:00:02]} 39. Re1 {[%emt 0:01:34]} Qc6 {[%emt 0:00:13]} 40. Qe4 {[%emt 0:04:46]} Rd8+ {[%emt 0:00:27]} 41. Ke3 {[%emt 0:00:06]} Rd5 {[%emt 0:01:53]} 42. Kf3 {[%emt 0:02:03]} Kf7 {[%emt 0:00:39]} 43. Kg2 {[%emt 0:00:21]} Qd7 {[%emt 0:00:31]} 44. Kf1 {[%emt 0:01:19]} Rf5 {[%emt 0:00:26]} 45. Re3 {[%emt 0:01:14]} Rf6 {[%emt 0:00:40]} 46. Rd3 {[%emt 0:00:18]} Qc7 {[%emt 0:00:05]} 47. Rc3 {[%emt 0:00:27]} Qd7 {[%emt 0:00:52]} 48. Rd3 {[%emt 0:00:08]} Qc7 {[%emt 0:00:09]} 49. Rc3 {[%emt 0:00:14]} Qh2 {[%emt 0:00:45]} 50. Qd4 {[%emt 0:01:16]} Qh1+ {[%emt 0:00:27]} 51. Ke2 {[%emt 0:00:06]} Qh5+ {[%emt 0:00:35]} 52. Kf1 {[%emt 0:00:17]} Kg8 {[%emt 0:00:23]} 53. Qe4 {[%emt 0:01:07]} Qd1+ {[%emt 0:00:43]} 54. Kg2 {[%emt 0:00:08]} Qd7 {[%emt 0:00:28]} 55. Rd3 {[%emt 0:00:41]} Qe7 {[%emt 0:00:33]} 56. Rc3 {[%emt 0:00:51]} Rf5 {[%emt 0:00:29]} 57. Rg3 {[%emt 0:00:22]} Qd7 {[%emt 0:00:26]} 58. Rd3 {[%emt 0:00:25]} Qe8 {[%emt 0:00:13]} 59. Re3 {[%emt 0:00:30]} Rf6 {[%emt 0:00:13]} 60. Rg3 {[%emt 0:00:13]} a5 {[%emt 0:00:40]} 61. Qb7 {[%emt 0:00:31]} Rf7 {[%emt 0:00:56]} 1/2-1/2

[Event "10th Iberoamericano-ch 2024"]
[Site "Linares"]
[Date "2024.09.27"]
[Round "5.23"]
[White "Sos Andreu, Eric"]
[Black "Goncalves, Samuel Jesus P"]
[Result "1/2-1/2"]
[ECO "E60"]
[WhiteElo "2359"]
[BlackElo "2169"]
[Annotator "ChessBase"]
[PlyCount "119"]
[EventDate "2024.09.25"]
[EventType "swiss"]
[EventCountry "ESP"]
[SourceTitle "playchess.com"]
[Source "ChessBase"]
[SourceQuality "1"]
[TimeControl "5400+30"]

1. d4 {[%emt 0:00:02]} Nf6 {[%emt 0:02:57]} 2. c4 {[%emt 0:00:04]} g6 {[%emt 0:00:11]} 3. g3 {[%emt 0:00:06]} Bg7 {[%emt 0:00:16]} 4. Bg2 {[%emt 0:00:05]} O-O {[%emt 0:00:24]} 5. Nc3 {[%emt 0:00:07]} Nc6 {[%emt 0:00:06]} 6. e3 e5 {[%emt 0:01:22]} 7. Nge2 {[%emt 0:04:41]} d6 {[%emt 0:04:51]} 8. O-O {[%emt 0:00:20]} Bg4 {[%emt 0:13:51]} 9. d5 {[%emt 0:05:12]} Nb8 {[%emt 0:01:19]} 10. e4 {[%emt 0:02:49]} a5 {[%emt 0:00:49]} 11. Be3 {[%emt 0:01:26]} Na6 {[%emt 0:00:18]} 12. f3 {[%emt 0:00:34]} Bd7 {[%emt 0:00:10]} 13. a3 {[%emt 0:01:01]} Nh5 {[%emt 0:02:12]} 14. Rb1 {[%emt 0:04:57]} f5 {[%emt 0:02:33]} 15. b4 {[%emt 0:01:47]} f4 {[%emt 0:00:46]} 16. Bf2 {[%emt 0:00:06]} g5 {[%emt 0:01:18]} 17. g4 {[%emt 0:03:49]} Nf6 {[%emt 0:00:08]} 18. c5 {[%emt 0:08:24]} axb4 {[%emt 0:04:54]} 19. axb4 {[%emt 0:00:08]} h5 {[%emt 0:00:23]} 20. h3 {[%emt 0:00:04]} hxg4 {[%emt 0:01:35]} 21. hxg4 {[%emt 0:00:07]} Nxg4 {[%emt 0:01:23]} 22. fxg4 {[%emt 0:00:43]} Bxg4 {[%emt 0:00:18]} 23. Bh1 {[%emt 0:04:27]} Bh3 {[%emt 0:01:38]} 24. Nc1 {[%emt 0:04:06]} g4 {[%emt 0:01:03]} 25. Be1 {[%emt 0:05:48]} Bxf1 {[%emt 0:04:57]} 26. Qxg4 {[%emt 0:00:25]} Bc4 {[%emt 0:01:57]} 27. c6 {[%emt 0:03:16]} bxc6 {[%emt 0:01:43]} 28. dxc6 {[%emt 0:00:06]} Qc8 {[%emt 0:00:15]} 29. Bf3 {[%emt 0:00:48]} Qxg4+ {[%emt 0:00:54]} 30. Bxg4 {[%emt 0:00:04]} f3 {[%emt 0:00:35]} 31. Kf2 {[%emt 0:00:32]} Bf6 {[%emt 0:02:09]} 32. Kg3 {[%emt 0:00:50]} Rab8 {[%emt 0:02:56]} 33. b5 {[%emt 0:02:17]} Nc5 {[%emt 0:00:17]} 34. Bf5 {[%emt 0:00:04]} Be6 {[%emt 0:02:45]} 35. Kxf3 Bxf5 36. exf5 {[%emt 0:06:02]} e4+ {[%emt 0:00:37]} 37. Ke3 {[%emt 0:01:37]} Bg5+ {[%emt 0:00:30]} 38. Ke2 {[%emt 0:00:35]} Rxf5 {[%emt 0:00:25]} 39. Nb3 {[%emt 0:00:23]} Ne6 {[%emt 0:12:29]} 40. Bg3 {[%emt 0:01:32]} Rf3 {[%emt 0:01:26]} 41. Be1 {[%emt 0:01:27]} Re3+ {[%emt 0:04:07]} 42. Kd1 {[%emt 0:00:35]} Bf6 {[%emt 0:00:26]} 43. Kc2 {[%emt 0:02:49]} Bxc3 {[%emt 0:01:21]} 44. Bxc3 {[%emt 0:00:05]} Rxb5 {[%emt 0:00:34]} 45. Rg1+ {[%emt 0:00:05]} Rg5 {[%emt 0:01:06]} 46. Rxg5+ {[%emt 0:00:35]} Nxg5 {[%emt 0:00:02]} 47. Bd2 {[%emt 0:00:06]} Re2 {[%emt 0:02:18]} 48. Kc3 {[%emt 0:02:36]} Ne6 {[%emt 0:01:22]} 49. Kc4 {[%emt 0:00:29]} Kf7 {[%emt 0:01:26]} 50. Ba5 {[%emt 0:00:23]} Rc2+ {[%emt 0:00:28]} 51. Bc3 {[%emt 0:00:25]} Nc5 {[%emt 0:01:39]} 52. Nd4 {[%emt 0:00:20]} Na4 {[%emt 0:00:13]} 53. Nxc2 {[%emt 0:00:05]} d5+ {[%emt 0:03:17]} 54. Kd4 {[%emt 0:02:58]} Nxc3 {[%emt 0:01:58]} 55. Kxc3 {[%emt 0:00:08]} Ke6 {[%emt 0:00:05]} 56. Kb4 {[%emt 0:08:18]} d4 {[%emt 0:01:12]} 57. Nxd4+ {[%emt 0:00:33]} Kd5 {[%emt 0:00:01]} 58. Kc3 {[%emt 0:00:23]} Kc5 {[%emt 0:00:05]} 59. Ne6+ {[%emt 0:00:22]} Kxc6 {[%emt 0:00:05]} 60. Nxc7 {[%emt 0:00:07]} 1/2-1/2

[Event "10th Iberoamericano-ch 2024"]
[Site "Linares"]
[Date "2024.09.27"]
[Round "5.24"]
[White "Prado Lobo, Jonas"]
[Black "Rocha, Maximiliano"]
[Result "1-0"]
[ECO "D11"]
[WhiteElo "2385"]
[BlackElo "2156"]
[Annotator "ChessBase"]
[PlyCount "47"]
[EventDate "2024.09.25"]
[EventType "swiss"]
[EventCountry "ESP"]
[SourceTitle "playchess.com"]
[Source "ChessBase"]
[SourceQuality "1"]
[TimeControl "5400+30"]

1. d4 {[%emt 0:00:01]} d5 {[%emt 0:07:05]} 2. c4 {[%emt 0:00:14]} c6 {[%emt 0:00:09]} 3. Nf3 {[%emt 0:00:27]} e6 {[%emt 0:00:08]} 4. Qc2 {[%emt 0:01:45]} Bd6 {[%emt 0:08:03]} 5. Nc3 {[%emt 0:01:52]} Nf6 {[%emt 0:06:42]} 6. Bg5 {[%emt 0:03:38]} Nbd7 {[%emt 0:00:29]} 7. e3 {[%emt 0:00:28]} O-O {[%emt 0:00:17]} 8. Bd3 {[%emt 0:01:00]} h6 {[%emt 0:00:12]} 9. Bh4 {[%emt 0:00:05]} dxc4 {[%emt 0:00:07]} 10. Bxc4 {[%emt 0:00:28]} b5 {[%emt 0:00:06]} 11. Bb3 {[%emt 0:08:28]} a5 {[%emt 0:04:35]} 12. a3 {[%emt 0:06:35]} Ba6 {[%emt 0:10:09]} 13. Ne4 {[%emt 0:02:14]} Be7 {[%emt 0:12:43]} 14. O-O {[%emt 0:22:15]} g5 {[%emt 0:13:04]} 15. Nxf6+ {[%emt 0:05:14]} Nxf6 {[%emt 0:00:51]} 16. Bg3 {[%emt 0:00:25]} a4 {[%emt 0:00:24]} 17. Bxe6 {[%emt 0:06:35]} fxe6 {[%emt 0:00:07]} 18. Qg6+ {[%emt 0:00:07]} Kh8 {[%emt 0:00:09]} 19. Qxh6+ {[%emt 0:01:00]} Nh7 {[%emt 0:07:30]} 20. Be5+ {[%emt 0:00:23]} Bf6 21. Nxg5 {[%emt 0:00:14]} Ra7 {[%emt 0:10:47]} 22. Nxe6 {[%emt 0:00:31]} Bxe5 {[%emt 0:00:47]} 23. Nxd8 {[%emt 0:00:53]} Bg7 {[%emt 0:00:02]} 24. Qd6 {[%emt 0:01:15]} 1-0